[Event "Djerba Festival Blitz 2025"]
[Site "Djerba"]
[Date "2025.02.21"]
[Round "9.6"]
[White "Boudriga, Mohamed Ali"]
[Black "Kobalia, Mikhail"]
[Result "0-1"]
[Annotator "TA"]
[ECO "B44"]
[WhiteElo "2323"]
[BlackElo "2538"]
[PlyCount "69"]
[EventDate "2025.02.15"]
[EventType "swiss"]
[EventCountry "TUN"]
[SourceTitle "playchess.com"]
[Source "ChessBase"]
[SourceQuality "1"]
[TimeControl "180+3"]

{[%evp 31,69,24,49,40,48,42,50,0,2,0,14,0,46,0,7,18,77,45,41,0,23,34,27,20,71,77,84,35,43,43,37,46,49,31,92,0,0,0,7,-37]} 1. e4 {[%emt 0:00:03]} c5 {[%emt 0:00:02]} 2. Nf3 {[%emt 0:00:03]} e6 {[%emt 0:00:02]} 3. d4 {[%emt 0:00:05]} cxd4 {[%emt 0:00:02]} 4. Nxd4 {[%emt 0:00:02]} Nc6 {[%emt 0:00:01]} 5. Nb5 {[%emt 0:00:02]} d6 {[%emt 0:00:02]} 6. c4 {[%emt 0:00:04]} Nf6 {[%emt 0:00:07]} 7. N1c3 {[%emt 0:00:02]} a6 {[%emt 0:00:01]} 8. Na3 {[%emt 0:00:02]} b6 {[%emt 0:00:05]} 9. Be2 {[%emt 0:00:09]} Bb7 {[%emt 0:00:02]} 10. O-O {[%emt 0:00:03]} Ne5 {[%emt 0:00:01]} 11. f3 {[%emt 0:00:04]} Be7 {[%emt 0:00:04]} 12. Be3 {[%emt 0:00:03]} Ned7 {[%emt 0:00:01]} 13. Qd2 {[%emt 0:00:37]} Qc7 {[%emt 0:00:02]} 14. Rac1 {[%emt 0:00:03]} Rc8 {[%emt 0:00:06]} 15. Rfd1 {[%emt 0:00:03]} O-O {[%emt 0:00:08]} 16. Bf1 {[%emt 0:00:08]} Qb8 {[%emt 0:00:02]} 17. Nc2 {[%emt 0:00:53] B44: Sicilian: Taimanov: 5 Nb5.} Rfe8 {[%emt 0:00:18]} 18. Nd4 {[%emt 0:00:06]} Bd8 {[%emt 0:00:04]} 19. Nb3 {[%emt 0:00:08]} (19. Bf2 $14) 19... Bc7 $11 {[%emt 0:00:02][%cal Od6d5]} 20. Bf4 {[%emt 0:00:02][%cal Rf4d6]} Ne5 {[%emt 0:00:07][%cal Od6d5] [#] and ...d5! would now be decisive} 21. Kh1 $146 {[%emt 0:00:53]} ({Predecessor:} 21. Bxe5 dxe5 22. Qf2 Bc6 23. Kh1 Red8 24. Rxd8+ Rxd8 25. a4 Nd7 26. Qc2 Bd6 27. a5 Nc5 28. Rd1 h5 29. axb6 Qxb6 30. Nxc5 Bxc5 31. Rxd8+ Qxd8 {½-½ Nunez Gregoire,D (2154)-Zeller,F (2328) Bamberg op 6th 2024 (4)}) 21... Nh5 {[%emt 0:00:13]} (21... d5 $11 {was preferable.} 22. exd5 (22. cxd5 Nxf3 23. Bxc7 Nxd2 $15) 22... exd5 (22... Nxc4 23. Bxc7 Nxd2 24. Bxb8 $11)) 22. Bxe5 {[%emt 0:00:05]} dxe5 {[%emt 0:00:02]} 23. c5 {[%emt 0:00:02]} Nf4 {[%emt 0:00:13]} (23... b5 $11) 24. Na4 {[%emt 0:00:07]} Rcd8 {[%emt 0:00:08]} 25. Qf2 {[%emt 0:00:03]} Rxd1 {[%emt 0:00:04]} 26. Rxd1 {[%emt 0:00:02]} b5 {[%emt 0:00:02]} 27. Nb6 {[%emt 0:00:02]} h5 {[%emt 0:00:10]} (27... f5 $11) 28. Na5 $16 {[%emt 0:00:06]} Ba8 {[%emt 0:00:40]} 29. b4 {[%emt 0:00:04]} (29. g3 $16 Ng6 30. Bh3) 29... Rd8 $14 {[%emt 0:00:02]} 30. Rxd8+ {[%emt 0:00:18]} ({But not} 30. Nd7 Qc8 31. c6 (31. Qd2 $2 Kh8 $19) 31... Bxa5 32. bxa5 Bxc6 $17 (32... Qxc6 $2 {loses.} 33. Nf6+ gxf6 34. Rxd8+ Kg7 35. Kg1 $18)) 30... Qxd8 {[%emt 0:00:02]} 31. Nxa8 {[%emt 0:00:02]} Qxa8 {[%emt 0:00:01]} 32. Nb3 {[%emt 0:00:05]} f5 {[%emt 0:00:14] [#]} (32... Ng6 $14) 33. exf5 {[%emt 0:00:03]} (33. Qc2 $1 $16) 33... exf5 $11 {[%emt 0:00:02]} 34. Qd2 {[%emt 0:00:03]} e4 {[%emt 0:00:05]} 35. Qe3 {[%emt 0:00:11] Weighted Error Value: White=0.21 (precise) /Black=0.23 (precise)   Mistake:       	White=3     	Black=4      Inaccurate:     	White=4     	---        OK:         	White=6     	Black=5      Best:        	---       	Black=1} 0-1

[Event "Djerba Festival Blitz 2025"]
[Site "Djerba"]
[Date "2025.02.21"]
[Round "9.7"]
[White "Amdouni, Zoubaier"]
[Black "Stopa, Jacek"]
[Result "1-0"]
[Annotator "ChessBase"]
[ECO "C01"]
[WhiteElo "2229"]
[BlackElo "2310"]
[PlyCount "37"]
[EventDate "2025.02.15"]
[EventType "swiss"]
[EventCountry "TUN"]
[SourceTitle "playchess.com"]
[Source "ChessBase"]
[SourceQuality "1"]
[TimeControl "180+3"]

1. e4 {[%emt 0:00:04]} e6 {[%emt 0:00:02]} 2. d4 {[%emt 0:00:03]} d5 {[%emt 0:00:02]} 3. Bd3 {[%emt 0:00:02]} dxe4 4. Bxe4 {[%emt 0:00:02]} Nf6 {[%emt 0:00:05]} 5. Bf3 {[%emt 0:00:02]} c5 {[%emt 0:00:02]} 6. Ne2 {[%emt 0:00:01]} Nc6 {[%emt 0:00:08]} 7. Be3 {[%emt 0:00:03]} Nd5 {[%emt 0:00:15]} 8. Bxd5 {[%emt 0:00:06]} Qxd5 {[%emt 0:00:10]} 9. Nbc3 {[%emt 0:00:01]} Qxg2 {[%emt 0:00:19]} 10. Rg1 {[%emt 0:00:04]} Qh3 {[%emt 0:00:28]} 11. Nb5 {[%emt 0:00:06]} cxd4 {[%emt 0:00:09]} 12. Nexd4 {[%emt 0:00:25]} Bb4+ {[%emt 0:00:03]} 13. c3 {[%emt 0:00:02]} Ba5 {[%emt 0:00:07]} 14. Nxc6 {[%emt 0:00:28]} bxc6 {[%emt 0:00:05]} 15. Nd6+ {[%emt 0:00:57]} Kf8 {[%emt 0:00:06]} 16. Qa4 {[%emt 0:00:22]} Bc7 {[%emt 0:01:16]} 17. Qxc6 {[%emt 0:00:03]} Bxd6 {[%emt 0:00:01]} 18. Qxd6+ {[%emt 0:00:04]} Ke8 {[%emt 0:00:02]} 19. Qc6+ {[%emt 0:00:03]} 1-0

[Event "Djerba Festival Blitz 2025"]
[Site "Djerba"]
[Date "2025.02.21"]
[Round "9.8"]
[White "Achour, Mohamed Anis"]
[Black "Gemelli, Romain"]
[Result "1/2-1/2"]
[Annotator "ChessBase"]
[ECO "D00"]
[WhiteElo "2066"]
[BlackElo "2203"]
[PlyCount "190"]
[EventDate "2025.02.15"]
[EventType "swiss"]
[EventCountry "TUN"]
[SourceTitle "playchess.com"]
[Source "ChessBase"]
[SourceQuality "1"]
[TimeControl "180+3"]

1. d4 {[%emt 0:00:04]} Nf6 {[%emt 0:00:03]} 2. Bf4 {[%emt 0:03:05]} d5 3. e3 {[%emt 0:00:00]} c5 {[%emt 0:00:04]} 4. dxc5 {[%emt 0:00:00]} e6 {[%emt 0:00:03]} 5. b4 {[%emt 0:00:00]} a5 {[%emt 0:03:08]} 6. c3 {[%emt 0:00:00]} axb4 {[%emt 0:00:00]} 7. cxb4 {[%emt 0:00:15]} b6 8. Bxb8 {[%emt 0:00:00]} Rxb8 {[%emt 0:00:00]} 9. Bb5+ {[%emt 0:00:00]} Ke7 {[%emt 0:00:00]} 10. c6 {[%emt 0:00:00]} Qc7 {[%emt 0:00:00]} 11. Nf3 {[%emt 0:00:00]} Ke8 {[%emt 0:00:00]} 12. a3 {[%emt 0:00:00]} Bd6 {[%emt 0:00:00]} 13. O-O {[%emt 0:00:00]} e5 {[%emt 0:00:00]} 14. h3 {[%emt 0:00:00]} Be6 {[%emt 0:00:00]} 15. Nbd2 {[%emt 0:00:00]} Ke7 {[%emt 0:00:00]} 16. Qc2 {[%emt 0:00:00]} Rhd8 {[%emt 0:00:00]} 17. e4 {[%emt 0:00:00]} d4 {[%emt 0:00:00]} 18. Nc4 {[%emt 0:00:00]} Kf8 {[%emt 0:00:00]} 19. Nxd6 {[%emt 0:00:00]} Rxd6 {[%emt 0:00:00]} 20. Nxe5 {[%emt 0:00:00]} Rbd8 {[%emt 0:00:00]} 21. Nd3 Nxe4 {[%emt 0:00:00]} 22. a4 {[%emt 0:00:00]} Nc3 {[%emt 0:00:00]} 23. Rae1 {[%emt 0:00:00]} Bf5 {[%emt 0:00:00]} 24. Qd2 {[%emt 0:00:00]} Nxb5 {[%emt 0:00:00]} 25. axb5 {[%emt 0:00:00]} Rd5 {[%emt 0:00:00]} 26. Ne5 {[%emt 0:00:00]} Rxe5 {[%emt 0:00:09]} 27. Qf4 {[%emt 0:00:00]} f6 {[%emt 0:00:02]} 28. Ra1 {[%emt 0:00:00]} Bd3 {[%emt 0:00:14]} 29. Rfd1 {[%emt 0:00:00]} Bxb5 {[%emt 0:00:02]} 30. Rxd4 {[%emt 0:00:00]} Rxd4 {[%emt 0:00:21]} 31. Qxd4 {[%emt 0:00:02]} Bxc6 {[%emt 0:00:02]} 32. Rc1 {[%emt 0:00:11]} Qd7 {[%emt 0:00:01]} 33. Qxb6 {[%emt 0:00:05]} Re6 {[%emt 0:00:16]} 34. b5 {[%emt 0:00:12]} Bxb5 {[%emt 0:00:17]} 35. Qb8+ {[%emt 0:00:01]} Re8 {[%emt 0:00:01]} 36. Qb6 {[%emt 0:00:04]} Bd3 {[%emt 0:00:04]} 37. Rc7 {[%emt 0:00:06]} Qe6 {[%emt 0:00:01]} 38. Qa7 {[%emt 0:00:11]} Qe1+ {[%emt 0:00:03]} 39. Kh2 {[%emt 0:00:03]} Qe5+ {[%emt 0:00:02]} 40. Kg1 {[%emt 0:00:03]} Bg6 {[%emt 0:00:03]} 41. Rxg7 {[%emt 0:00:10]} f5 {[%emt 0:00:10]} 42. Rc7 {[%emt 0:00:05]} Re7 {[%emt 0:00:00]} 43. Qb8+ {[%emt 0:00:04]} Kf7 {[%emt 0:00:02]} 44. Qb3+ {[%emt 0:00:09]} Qe6 {[%emt 0:00:02]} 45. Rxe7+ {[%emt 0:00:05]} Kxe7 {[%emt 0:00:02]} 46. Qb7+ {[%emt 0:00:02]} Kf6 {[%emt 0:00:02]} 47. Qb2+ {[%emt 0:00:02]} Kf7 {[%emt 0:00:02]} 48. Qb7+ {[%emt 0:00:03]} Qe7 {[%emt 0:00:02]} 49. Qb3+ {[%emt 0:00:02]} Kg7 {[%emt 0:00:01]} 50. Qc3+ {[%emt 0:00:02]} Qf6 {[%emt 0:00:02]} 51. Qc7+ {[%emt 0:00:01]} Bf7 {[%emt 0:00:02]} 52. Qg3+ {[%emt 0:00:04]} Kh8 {[%emt 0:00:06]} 53. Qb8+ {[%emt 0:00:03]} Bg8 {[%emt 0:00:02]} 54. Kh2 {[%emt 0:00:03]} h6 {[%emt 0:00:02]} 55. Kg1 {[%emt 0:00:03]} Kh7 {[%emt 0:00:02]} 56. Qc7+ {[%emt 0:00:02]} Bf7 {[%emt 0:00:02]} 57. Kh2 {[%emt 0:00:03]} Kg7 {[%emt 0:00:02]} 58. Kg1 {[%emt 0:00:02]} f4 {[%emt 0:00:02]} 59. f3 {[%emt 0:00:04]} h5 {[%emt 0:00:05]} 60. Kh2 {[%emt 0:00:03]} Qg5 {[%emt 0:00:03]} 61. Kg1 {[%emt 0:00:03]} Kh6 {[%emt 0:00:02]} 62. Qxf7 {[%emt 0:00:05]} Qg3 {[%emt 0:00:05]} 63. Qf6+ {[%emt 0:00:04]} Kh7 {[%emt 0:00:02]} 64. Qe7+ {[%emt 0:00:03]} Kh6 {[%emt 0:00:03]} 65. Kh1 {[%emt 0:00:02]} Kg6 {[%emt 0:00:04]} 66. Qe4+ {[%emt 0:00:05]} Kg7 {[%emt 0:00:02]} 67. Qe2 {[%emt 0:00:02]} Kh7 {[%emt 0:00:03]} 68. Kg1 {[%emt 0:00:02]} Kg7 {[%emt 0:00:06]} 69. Qf2 {[%emt 0:00:02]} Qg5 {[%emt 0:00:04]} 70. Kh2 {[%emt 0:00:02]} Kh7 {[%emt 0:00:04]} 71. Qa7+ {[%emt 0:00:02]} Kh6 {[%emt 0:00:03]} 72. Qb6+ {[%emt 0:00:03]} Kh7 {[%emt 0:00:02]} 73. Qc7+ {[%emt 0:00:03]} Kh6 {[%emt 0:00:02]} 74. Qd6+ {[%emt 0:00:02]} Kh7 {[%emt 0:00:03]} 75. Qd7+ {[%emt 0:00:04]} Kh6 {[%emt 0:00:01]} 76. Qc6+ {[%emt 0:00:04]} Kh7 {[%emt 0:00:03]} 77. Qc1 {[%emt 0:00:02]} Qg3+ {[%emt 0:00:03]} 78. Kg1 {[%emt 0:00:03]} Kg7 {[%emt 0:00:03]} 79. Qf1 {[%emt 0:00:03]} Kh7 {[%emt 0:00:03]} 80. Qf2 {[%emt 0:00:02]} Qg5 {[%emt 0:00:02]} 81. h4 {[%emt 0:00:02]} Qe5 {[%emt 0:00:03]} 82. Kh2 {[%emt 0:00:03]} Qf6 {[%emt 0:00:03]} 83. g3 {[%emt 0:00:02]} fxg3+ 84. Qxg3 {[%emt 0:00:03]} Qb2+ {[%emt 0:00:05]} 85. Kh3 {[%emt 0:00:02]} Qc2 {[%emt 0:00:05]} 86. f4 {[%emt 0:00:05]} Qf5+ {[%emt 0:00:03]} 87. Kg2 {[%emt 0:00:02]} Qc2+ {[%emt 0:00:02]} 88. Kf3 {[%emt 0:00:02]} Qd3+ {[%emt 0:00:02]} 89. Kf2 {[%emt 0:00:02]} Qd2+ {[%emt 0:00:02]} 90. Kg1 {[%emt 0:00:02]} Qd1+ {[%emt 0:00:03]} 91. Kh2 {[%emt 0:00:02]} Qe2+ {[%emt 0:00:03]} 92. Qg2 {[%emt 0:00:04]} Qe1 {[%emt 0:00:03]} 93. Qg5 {[%emt 0:00:02]} Qf2+ {[%emt 0:00:03]} 94. Kh3 {[%emt 0:00:02]} Qf1+ {[%emt 0:00:02]} 95. Kh2 {[%emt 0:00:03]} Qf2+ {[%emt 0:00:02]} 1/2-1/2

[Event "Djerba Festival Blitz 2025"]
[Site "Djerba"]
[Date "2025.02.21"]
[Round "9.9"]
[White "Bouzidi, Ahmed"]
[Black "Messala, Noureddine"]
[Result "0-1"]
[Annotator "ChessBase"]
[ECO "B22"]
[WhiteElo "2168"]
[BlackElo "2069"]
[PlyCount "114"]
[EventDate "2025.02.15"]
[EventType "swiss"]
[EventCountry "TUN"]
[SourceTitle "playchess.com"]
[Source "ChessBase"]
[SourceQuality "1"]
[TimeControl "180+3"]

1. e4 {[%emt 0:00:03]} c5 {[%emt 0:00:02]} 2. c3 {[%emt 0:00:02]} d5 {[%emt 0:00:06]} 3. exd5 {[%emt 0:00:03]} Qxd5 {[%emt 0:03:04]} 4. Na3 Nf6 {[%emt 0:00:00]} 5. Nf3 {[%emt 0:00:03]} e6 {[%emt 0:00:00]} 6. d4 {[%emt 0:00:11]} cxd4 {[%emt 0:00:00]} 7. Nb5 {[%emt 0:00:03]} Qd8 {[%emt 0:00:00]} 8. Nbxd4 {[%emt 0:00:59]} Nc6 {[%emt 0:00:00]} 9. Bb5 {[%emt 0:00:09]} Bd7 {[%emt 0:00:00]} 10. O-O {[%emt 0:00:08]} Be7 {[%emt 0:00:00]} 11. Qe2 {[%emt 0:00:22]} O-O {[%emt 0:00:00]} 12. Rd1 {[%emt 0:00:03]} Qb6 {[%emt 0:00:06]} 13. Nb3 {[%emt 0:00:28]} Nd5 {[%emt 0:00:09]} 14. c4 {[%emt 0:00:11]} Nf6 {[%emt 0:00:18]} 15. Be3 {[%emt 0:00:11]} Qc7 {[%emt 0:00:00]} 16. Nc5 {[%emt 0:00:16]} Rad8 {[%emt 0:00:00]} 17. Nxd7 {[%emt 0:00:08]} Rxd7 {[%emt 0:00:02]} 18. Rxd7 Nxd7 {[%emt 0:00:02]} 19. Rd1 {[%emt 0:00:30]} a6 {[%emt 0:00:07]} 20. Ba4 {[%emt 0:00:05]} Nf6 {[%emt 0:00:02]} 21. Bc2 {[%emt 0:00:03]} Rd8 {[%emt 0:00:02]} 22. a3 {[%emt 0:00:04]} Rd7 {[%emt 0:00:06]} 23. b4 {[%emt 0:00:02]} Qd8 {[%emt 0:00:02]} 24. h3 {[%emt 0:00:05]} Rxd1+ {[%emt 0:00:01]} 25. Qxd1 {[%emt 0:00:04]} Qxd1+ {[%emt 0:00:04]} 26. Bxd1 {[%emt 0:00:02]} Ne4 {[%emt 0:00:03]} 27. Bc2 {[%emt 0:00:03]} Nd6 {[%emt 0:00:03]} 28. Bd3 {[%emt 0:00:02]} e5 {[%emt 0:00:02]} 29. c5 {[%emt 0:00:06]} Nb5 {[%emt 0:00:09]} 30. Bxb5 axb5 {[%emt 0:00:00]} 31. Bd2 {[%emt 0:00:06]} Bf6 {[%emt 0:00:02]} 32. Bc3 {[%emt 0:00:04]} e4 {[%emt 0:00:03]} 33. Bxf6 {[%emt 0:00:02]} exf3 {[%emt 0:00:07]} 34. Bc3 {[%emt 0:00:03]} fxg2 {[%emt 0:00:03]} 35. Kxg2 {[%emt 0:00:04]} Kf8 {[%emt 0:00:03]} 36. Kf3 {[%emt 0:00:02]} f6 {[%emt 0:00:00]} 37. Ke4 {[%emt 0:00:02]} Ke7 {[%emt 0:00:01]} 38. Kd5 {[%emt 0:00:02]} Kd7 {[%emt 0:00:02]} 39. f4 {[%emt 0:00:02]} Ne7+ {[%emt 0:00:02]} 40. Ke4 {[%emt 0:00:02]} Kc6 {[%emt 0:00:03]} 41. h4 {[%emt 0:00:03]} Ng6 {[%emt 0:00:06]} 42. h5 {[%emt 0:00:03]} Ne7 {[%emt 0:00:04]} 43. h6 {[%emt 0:00:02]} f5+ {[%emt 0:00:06]} 44. Kf3 {[%emt 0:00:05]} gxh6 {[%emt 0:00:00]} 45. Bg7 {[%emt 0:00:04]} h5 {[%emt 0:00:01]} 46. Kg3 {[%emt 0:00:02]} Ng6 {[%emt 0:00:02]} 47. Bf6 {[%emt 0:00:03]} Kd5 {[%emt 0:00:02]} 48. Bb2 {[%emt 0:00:05]} Ke4 {[%emt 0:00:03]} 49. Bc1 {[%emt 0:00:02]} h4+ {[%emt 0:00:04]} 50. Kh3 {[%emt 0:00:04]} Nxf4+ {[%emt 0:00:02]} 51. Kxh4 {[%emt 0:00:02]} Nd3 {[%emt 0:00:03]} 52. Bd2 {[%emt 0:00:03]} Kf3 {[%emt 0:00:05]} 53. Kg5 {[%emt 0:00:05]} f4 {[%emt 0:00:03]} 54. Kf5 {[%emt 0:00:03]} h5 {[%emt 0:00:02]} 55. Kg5 {[%emt 0:00:03]} h4 {[%emt 0:00:06]} 56. Kxh4 {[%emt 0:00:02]} Ke2 {[%emt 0:00:01]} 57. Bxf4 {[%emt 0:00:08]} Nxf4 {[%emt 0:00:08]} 0-1

[Event "Djerba Festival Blitz 2025"]
[Site "Djerba"]
[Date "2025.02.21"]
[Round "9.10"]
[White "Njili, Kamel"]
[Black "MEZGOURI NOUREDDINE"]
[Result "1-0"]
[Annotator "ChessBase"]
[ECO "B01"]
[WhiteElo "2406"]
[BlackElo "1891"]
[PlyCount "67"]
[EventDate "2025.02.15"]
[EventType "swiss"]
[EventCountry "TUN"]
[SourceTitle "playchess.com"]
[Source "ChessBase"]
[SourceQuality "1"]
[TimeControl "180+3"]

1. e4 {[%emt 0:00:03]} d5 {[%emt 0:00:04]} 2. exd5 {[%emt 0:00:03]} Nf6 {[%emt 0:00:01]} 3. d4 {[%emt 0:00:05]} Nxd5 {[%emt 0:00:03]} 4. c4 {[%emt 0:00:03]} Nf6 {[%emt 0:00:02]} 5. Nc3 {[%emt 0:00:04]} g6 {[%emt 0:00:05]} 6. Nf3 {[%emt 0:00:17]} Bg7 {[%emt 0:00:02]} 7. h3 {[%emt 0:00:05]} a6 {[%emt 0:00:05]} 8. Be2 {[%emt 0:00:16]} b6 {[%emt 0:00:03]} 9. O-O {[%emt 0:00:05]} O-O {[%emt 0:00:03]} 10. Re1 {[%emt 0:00:27]} Bb7 {[%emt 0:00:02]} 11. Bg5 {[%emt 0:00:06]} h6 {[%emt 0:00:04]} 12. Bf4 {[%emt 0:00:03]} e6 {[%emt 0:00:06]} 13. Qd2 {[%emt 0:00:04]} Kh7 {[%emt 0:00:02]} 14. Rad1 {[%emt 0:00:03]} Nbd7 {[%emt 0:00:12]} 15. Qe3 {[%emt 0:00:06]} Qc8 {[%emt 0:00:11]} 16. b4 {[%emt 0:00:16]} Re8 {[%emt 0:00:12]} 17. Ne5 {[%emt 0:00:15]} Nxe5 {[%emt 0:00:08]} 18. dxe5 {[%emt 0:00:05]} Ng8 {[%emt 0:00:08]} 19. h4 {[%emt 0:00:10]} Ne7 {[%emt 0:00:08]} 20. g4 {[%emt 0:00:11]} c5 {[%emt 0:00:12]} 21. b5 {[%emt 0:00:03]} axb5 {[%emt 0:00:07]} 22. Nxb5 {[%emt 0:00:04]} Rxa2 {[%emt 0:01:00]} 23. Nd6 {[%emt 0:00:03]} Qc6 {[%emt 0:00:02]} 24. f3 {[%emt 0:00:02]} Rea8 {[%emt 0:00:12]} 25. Nxf7 {[%emt 0:01:19]} R8a3 {[%emt 0:00:13]} 26. Rd3 {[%emt 0:00:00]} Ra1 {[%emt 0:00:08]} 27. Rxa1 {[%emt 0:00:00]} Rxa1+ {[%emt 0:00:03]} 28. Kf2 {[%emt 0:00:00]} Ra2 {[%emt 0:00:08]} 29. Nd8 {[%emt 0:00:00]} Qc8 {[%emt 0:00:09]} 30. Rd6 {[%emt 0:00:00]} Nc6 {[%emt 0:00:10]} 31. Nxe6 {[%emt 0:00:00]} Nd4 {[%emt 0:00:16]} 32. Nxd4 {[%emt 0:00:00]} cxd4 {[%emt 0:00:03]} 33. Qxd4 {[%emt 0:00:00]} Qc6 {[%emt 0:00:02]} 34. Rxc6 {[%emt 0:00:00]} 1-0

[Event "Djerba Festival Blitz 2025"]
[Site "Djerba"]
[Date "2025.02.21"]
[Round "9.11"]
[White "Filali, Razzouki Marouane"]
[Black "Msalmi, Hamed"]
[Result "1-0"]
[Annotator "ChessBase"]
[ECO "B13"]
[WhiteElo "2234"]
[BlackElo "1747"]
[PlyCount "105"]
[EventDate "2025.02.15"]
[EventType "swiss"]
[EventCountry "TUN"]
[SourceTitle "playchess.com"]
[Source "ChessBase"]
[SourceQuality "1"]
[TimeControl "180+3"]

1. e4 {[%emt 0:00:02]} c6 {[%emt 0:00:04]} 2. d4 {[%emt 0:00:03]} d5 {[%emt 0:00:02]} 3. exd5 {[%emt 0:00:02]} cxd5 {[%emt 0:03:06]} 4. Bd3 {[%emt 0:00:04]} Nf6 {[%emt 0:00:00]} 5. Nf3 {[%emt 0:00:01]} Bg4 {[%emt 0:00:00]} 6. c3 {[%emt 0:00:04]} Nc6 {[%emt 0:00:00]} 7. Bf4 {[%emt 0:00:06]} e6 {[%emt 0:00:00]} 8. h3 {[%emt 0:00:02]} Bh5 {[%emt 0:00:00]} 9. Nbd2 {[%emt 0:00:02]} Bd6 {[%emt 0:00:00]} 10. Bg5 {[%emt 0:00:06]} a6 {[%emt 0:00:00]} 11. O-O {[%emt 0:00:04]} Qc7 {[%emt 0:00:00]} 12. Rc1 {[%emt 0:00:09]} Bf4 {[%emt 0:00:00]} 13. Bxf4 {[%emt 0:00:30]} Qxf4 {[%emt 0:00:00]} 14. Qe2 {[%emt 0:00:07]} O-O {[%emt 0:00:00]} 15. Rfe1 {[%emt 0:00:09]} b5 {[%emt 0:00:00]} 16. Qe3 {[%emt 0:00:12]} Qxe3 {[%emt 0:00:00]} 17. Rxe3 {[%emt 0:00:06]} Nd7 {[%emt 0:00:00]} 18. g4 {[%emt 0:00:14]} Bg6 {[%emt 0:00:00]} 19. Bxg6 {[%emt 0:00:05]} hxg6 {[%emt 0:00:00]} 20. b3 {[%emt 0:00:06]} Rac8 {[%emt 0:00:00]} 21. c4 {[%emt 0:00:13]} bxc4 {[%emt 0:00:00]} 22. bxc4 {[%emt 0:00:02]} Na5 {[%emt 0:00:00]} 23. c5 {[%emt 0:00:03]} Rb8 {[%emt 0:00:00]} 24. Ra3 {[%emt 0:00:02]} Rb5 {[%emt 0:00:00]} 25. Nb1 {[%emt 0:00:13]} Nc6 {[%emt 0:00:21]} 26. Rxa6 {[%emt 0:00:05]} Rc8 {[%emt 0:00:04]} 27. a3 {[%emt 0:00:11]} Rb2 {[%emt 0:00:04]} 28. Nc3 {[%emt 0:00:04]} e5 {[%emt 0:00:09]} 29. Nxd5 {[%emt 0:00:03]} Kf8 {[%emt 0:00:10]} 30. dxe5 {[%emt 0:00:10]} Ndxe5 {[%emt 0:00:04]} 31. Nxe5 {[%emt 0:00:02]} Nxe5 {[%emt 0:00:03]} 32. c6 {[%emt 0:00:03]} Rd2 {[%emt 0:00:11]} 33. Nb6 {[%emt 0:00:10]} Rc7 {[%emt 0:00:03]} 34. Na4 {[%emt 0:00:17]} Rd6 {[%emt 0:00:07]} 35. Rc5 {[%emt 0:00:05]} Nf3+ {[%emt 0:00:08]} 36. Kg2 {[%emt 0:00:06]} Ne1+ {[%emt 0:00:04]} 37. Kf1 {[%emt 0:00:02]} Nd3 {[%emt 0:00:02]} 38. Rc3 {[%emt 0:00:02]} Nf4 {[%emt 0:00:02]} 39. f3 {[%emt 0:00:08]} Rd2 {[%emt 0:00:02]} 40. Nc5 {[%emt 0:00:07]} Nxh3 {[%emt 0:00:12]} 41. Ne4 {[%emt 0:00:08]} Ra2 {[%emt 0:00:04]} 42. Rb6 {[%emt 0:00:03]} Ke7 {[%emt 0:00:02]} 43. Rb7 {[%emt 0:00:03]} Kd8 {[%emt 0:00:03]} 44. Nd6 {[%emt 0:00:03]} Rf2+ {[%emt 0:00:03]} 45. Ke1 {[%emt 0:00:03]} Ra2 {[%emt 0:00:03]} 46. Nxf7+ {[%emt 0:00:03]} Kc8 {[%emt 0:00:02]} 47. Nd6+ {[%emt 0:00:02]} Kd8 {[%emt 0:00:02]} 48. Re3 {[%emt 0:00:02]} Rxb7 {[%emt 0:00:03]} 49. cxb7 {[%emt 0:00:07]} Kc7 {[%emt 0:00:03]} 50. Re8 {[%emt 0:00:02]} Rb2 {[%emt 0:00:02]} 51. Rc8+ {[%emt 0:00:03]} Kxd6 {[%emt 0:00:02]} 52. b8=Q+ {[%emt 0:00:03]} Rxb8 {[%emt 0:00:03]} 53. Rxb8 {[%emt 0:00:02]} 1-0

[Event "Djerba Festival Blitz 2025"]
[Site "Djerba"]
[Date "2025.02.21"]
[Round "9.12"]
[White "Maisuradze, Nino"]
[Black "Dejardin, Gregoire"]
[Result "0-1"]
[Annotator "ChessBase"]
[ECO "D10"]
[WhiteElo "2174"]
[BlackElo "1932"]
[PlyCount "82"]
[EventDate "2025.02.15"]
[EventType "swiss"]
[EventCountry "TUN"]
[SourceTitle "playchess.com"]
[Source "ChessBase"]
[SourceQuality "1"]
[TimeControl "180+3"]

1. d4 {[%emt 0:00:02]} c6 {[%emt 0:00:03]} 2. c4 {[%emt 0:00:04]} d5 {[%emt 0:00:02]} 3. cxd5 {[%emt 0:00:02]} cxd5 {[%emt 0:00:02]} 4. Nc3 {[%emt 0:00:01]} Nc6 {[%emt 0:00:02]} 5. Bf4 {[%emt 0:00:06]} a6 {[%emt 0:00:02]} 6. e3 {[%emt 0:00:03]} Nf6 {[%emt 0:00:02]} 7. Bd3 {[%emt 0:00:02]} e6 {[%emt 0:00:03]} 8. Rc1 {[%emt 0:00:04]} Bd6 {[%emt 0:00:03]} 9. Bxd6 {[%emt 0:00:02]} Qxd6 {[%emt 0:00:02]} 10. f4 {[%emt 0:00:02]} Bd7 {[%emt 0:03:12]} 11. Nf3 Rc8 {[%emt 0:00:00]} 12. O-O {[%emt 0:00:03]} b5 {[%emt 0:00:00]} 13. h3 {[%emt 0:00:09]} h5 {[%emt 0:00:00]} 14. Ne5 {[%emt 0:00:05]} Ne7 {[%emt 0:00:00]} 15. Qf3 {[%emt 0:00:26]} g6 {[%emt 0:00:00]} 16. a3 {[%emt 0:00:07]} Nf5 {[%emt 0:00:00]} 17. g4 {[%emt 0:00:22]} Ne7 {[%emt 0:00:00]} 18. Rc2 {[%emt 0:00:23]} hxg4 {[%emt 0:00:00]} 19. hxg4 {[%emt 0:00:02]} Kf8 {[%emt 0:00:00]} 20. Rg2 {[%emt 0:00:08]} Bc6 {[%emt 0:00:00]} 21. f5 {[%emt 0:00:09]} exf5 {[%emt 0:00:00]} 22. gxf5 {[%emt 0:00:02]} gxf5 {[%emt 0:00:00]} 23. Bxf5 {[%emt 0:00:04]} Nxf5 {[%emt 0:00:08]} 24. Qxf5 {[%emt 0:00:02]} Ke7 {[%emt 0:00:12]} 25. Rf3 {[%emt 0:00:50]} Rcg8 {[%emt 0:00:03]} 26. Rfg3 {[%emt 0:00:04]} Rxg3 {[%emt 0:00:25]} 27. Rxg3 Bd7 {[%emt 0:00:00]} 28. Qf4 {[%emt 0:00:10]} Be6 {[%emt 0:00:00]} 29. Rg2 {[%emt 0:00:19]} Rg8 {[%emt 0:00:00]} 30. Ne2 {[%emt 0:00:10]} Rxg2+ {[%emt 0:00:00]} 31. Kxg2 {[%emt 0:00:02]} Ne4 {[%emt 0:00:00]} 32. Qh4+ {[%emt 0:00:04]} Ke8 {[%emt 0:00:06]} 33. Nf4 {[%emt 0:00:07]} Qf8 {[%emt 0:00:06]} 34. Kf3 {[%emt 0:00:13]} Qg7 {[%emt 0:00:04]} 35. Nxe6 fxe6 {[%emt 0:00:03]} 36. Qh5+ {[%emt 0:00:07]} Ke7 {[%emt 0:00:11]} 37. Ng6+ Kd6 {[%emt 0:00:00]} 38. Qh2+ {[%emt 0:00:06]} Kc6 {[%emt 0:00:01]} 39. Ne5+ {[%emt 0:00:03]} Kb7 {[%emt 0:00:04]} 40. Qh3 {[%emt 0:00:05]} Qf6+ {[%emt 0:00:02]} 41. Ke2 {[%emt 0:00:13]} Qf2+ {[%emt 0:00:02]} 0-1